Workbook

Sheet MSU
B1: Jussi Ruokonen | E1: 5.1.1989
B2: SUPERPESIS | E2: Runkosarja | I2: Kärkilyönnit (KL), pesänvälit | P2: Ylempi loppusarja | W2: Alempi loppusarja | AD2: Arvo-ottelut | AH2: Mitalit
B3: Vuosi | C3: Sija | D3: Seura | E3: OTT | F3: KUN | G3: LÖI | H3: TOI | I3: KL | J3: 0 > 1 | K3: 1 > 2 | L3: 2 > 3 | M3: 3 > k | N3: KL-% | P3: OTT | Q3: KUN | R3: LÖI | S3: TOI | T3: KL | U3: KL-% | W3: OTT | X3: KUN | Y3: LÖI | Z3: TOI | AA3: KL | AB3: KL-% | AD3: IL | AE3: LL | AF3: hSM | AG3: K | AH3: H | AI3: P
B4: 2006 | C4: 8. | D4: IPV 2 | F4: suomensarja
B5: 2007 | C5: 8. | D5: IPV 2 | F5: suomensarja
B6: 2007 | C6: 4. | D6: IPV | F6: ykköspesis | W6: 1 | X6: 0 | Y6: 1 | Z6: 0 | AA6: 2 | AB6: 66.7 %
B7: 2008 | C7: 7. | D7: KiPa | F7: poikien superpesis
B8: 2009
B9: 2010 | C9: 9. | D9: JoMa 2 | F9: suomensarja
B10: Yhteensä | E10: 0 | F10: 0 | G10: 0 | H10: 0 | I10: 0 | J10: 0 | K10: 0 | L10: 0 | M10: 0 | P10: 0 | Q10: 0 | R10: 0 | S10: 0 | T10: 0 | U10: 0.0 % | W10: 1 | X10: 0 | Y10: 1 | Z10: 0 | AA10: 2 | AB10: 66.7 % | AD10: 0 | AE10: 0 | AF10: 0 | AG10: 0 | AH10: 0 | AI10: 0
B11: Pesispörssi | D11: 0.0
B13: URA SUPERISSA | E13: OTT | F13: KUN | G13: LÖI | H13: TOI | I13: KL | K13: ka/L | L13: ka/T | M13: ka/KL | N13: KL-% | P13: ENSIMMÄISET
B14: Runkosarja | P14: Ottelu | R14: 06.09. 2007 IPV - KeKi 2-0 (2-1, 3-2) | Z14: 1. ottelu | AB14: 18 v 8 kk 1 pv | AE14: ALS
B15: Ylempi loppusarja | P15: Lyöty | R15: 06.09. 2007 IPV - KeKi 2-0 (2-1, 3-2) | Z15: 1. ottelu | AB15: 18 v 8 kk 1 pv | AE15: ALS
B16: Alempi loppusarja | E16: 1 | F16: 0 | G16: 1 | H16: 0 | I16: 2 | K16: 1.00 | L16: 0.00 | M16: 2.00 | N16: 66.7 % | O16: 5 | P16: Tuotu
B17: KAIKKI | E17: 1 | F17: 0 | G17: 1 | H17: 0 | I17: 2 | K17: 1.00 | L17: 0.00 | M17: 2.00 | N17: 66.7 % | O17: 5 | P17: Kunnari
B19: Seurat | D19: IPV = Imatran Pallo-Veikot (1955), kasvattajaseura
D20: KiPa = Kiteen Pallo -90 (1990)
D21: JoMa = Joensuun Maila (1957)

Sheet MYP, MSS
B1: Jussi Ruokonen | E1: 5.1.1989
B2: YKKÖSPESIS | E2: Runkosarja | L2: Runkosarja TOP-10 | Q2: Jatkosarjat | X2: SUOMENSARJA | AA2: Runkosarja | AH2: Runkosarja TOP-10 | AM2: Jatkosarjat
B3: Vuosi | C3: Sija | D3: Seura | E3: OTT | F3: KUN | G3: LÖI | H3: TOI | I3: KL | J3: KL-% | L3: LÖI | M3: TOI | N3: L+T | O3: KL | Q3: OTT | R3: KUN | S3: LÖI | T3: TOI | U3: KL | V3: KL-% | X3: Vuosi | Y3: Sija | Z3: Seura | AA3: OTT | AB3: KUN | AC3: LÖI | AD3: TOI | AE3: KL | AF3: KL-% | AH3: LÖI | AI3: TOI | AJ3: L+T | AK3: KL | AM3: OTT | AN3: KUN | AO3: LÖI | AP3: TOI | AQ3: KL | AR3: KL-%
X4: 2006 | Y4: 8. | Z4: IPV 2 | AA4: 13 | AB4: 0 | AC4: 3 | AD4: 4 | AE4: 22 | AF4: 40.0 % | AG4: 55
B5: 2007 | C5: 4. | D5: IPV | E5: 1 | F5: 0 | G5: 1 | H5: 0 | I5: 2 | J5: 50.0 % | K5: 4 | X5: 2007 | Y5: 8. | Z5: IPV 2 | AA5: 16 | AB5: 2 | AC5: 4 | AD5: 9 | AE5: 57 | AF5: 50.9 % | AG5: 112
X7: 2010 | Y7: 9. | Z7: JoMa 2 | AA7: 5 | AB7: 0 | AC7: 0 | AD7: 0 | AE7: 6 | AF7: 27.3 % | AG7: 22
B8: YHTEENSÄ | E8: =SUM(E4:E7) -> 1 | F8: =SUM(F4:F7) -> 0 | G8: =SUM(G4:G7) -> 1 | H8: =SUM(H4:H7) -> 0 | I8: =SUM(I4:I7) -> 2 | J8: =PRODUCT(I8/K8) -> 50.0 % | K8: =SUM(K4:K7) -> 4 | Q8: =SUM(Q4:Q7) -> 0 | R8: =SUM(R4:R7) -> 0 | S8: =SUM(S4:S7) -> 0 | T8: =SUM(T4:T7) -> 0 | U8: =SUM(U4:U7) -> 0 | V8: 0.0 % | W8: =SUM(W4:W7) -> 0 | X8: YHTEENSÄ | AA8: =SUM(AA4:AA7) -> 34 | AB8: =SUM(AB4:AB7) -> 2 | AC8: =SUM(AC4:AC7) -> 7 | AD8: =SUM(AD4:AD7) -> 13 | AE8: =SUM(AE4:AE7) -> 85 | AF8: =PRODUCT(AE8/AG8) -> 45.0 % | AG8: =SUM(AG4:AG7) -> 189 | AM8: =SUM(AM4:AM7) -> 0 | AN8: =SUM(AN4:AN7) -> 0 | AO8: =SUM(AO4:AO7) -> 0 | AP8: =SUM(AP4:AP7) -> 0 | AQ8: =SUM(AQ4:AQ7) -> 0 | AR8: 0.0 % | AS8: =SUM(AS4:AS7) -> 0
B10: KAIKKI OTTELUT | E10: OTT | F10: KUN | G10: LÖI | H10: TOI | I10: KL | J10: KL-% | L10: ka/L | M10: ka/T | N10: ka/l+t | O10: ka/kl | R10: Seurat | T10: IPV = Imatran Pallo-Veikot (1955), kasvattajaseura
B11: SUPERPESIS | E11: 1 | F11: 0 | G11: 1 | H11: 0 | I11: 2 | J11: 66.7 % | K11: =PRODUCT(I11/J11) -> 2.99850075 | L11: =PRODUCT((F11+G11)/E11) -> 1.00 | M11: =PRODUCT(H11/E11) -> 0.00 | N11: =PRODUCT((F11+G11+H11)/E11) -> 1.00 | O11: =PRODUCT(I11/E11) -> 2.00 | T11: KiPa = Kiteen Pallo -90 (1990)
B12: YKKÖSPESIS | E12: =PRODUCT(E8+Q8) -> 1 | F12: =PRODUCT(F8+R8) -> 0 | G12: =PRODUCT(G8+S8) -> 1 | H12: =PRODUCT(H8+T8) -> 0 | I12: =PRODUCT(I8+U8) -> 2 | J12: =PRODUCT(I12/K12) -> 50.0 % | K12: =PRODUCT(K8+W8) -> 4 | L12: =PRODUCT((F12+G12)/E12) -> 1.00 | M12: =PRODUCT(H12/E12) -> 0.00 | N12: =PRODUCT((F12+G12+H12)/E12) -> 1.00 | O12: =PRODUCT(I12/E12) -> 2.00 | T12: JoMa = Joensuun Maila (1957)
B13: SUOMENSARJA | E13: =PRODUCT(AA8+AM8) -> 34 | F13: =PRODUCT(AB8+AN8) -> 2 | G13: =PRODUCT(AC8+AO8) -> 7 | H13: =PRODUCT(AD8+AP8) -> 13 | I13: =PRODUCT(AE8+AQ8) -> 85 | J13: =PRODUCT(I13/K13) -> 45.0 % | K13: =PRODUCT(AG8+AS8) -> 189 | L13: =PRODUCT((F13+G13)/E13) -> 0.26 | M13: =PRODUCT(H13/E13) -> 0.38 | N13: =PRODUCT((F13+G13+H13)/E13) -> 0.65 | O13: =PRODUCT(I13/E13) -> 2.50
B14: YHTEENSÄ | E14: =SUM(E11:E13) -> 36 | F14: =SUM(F11:F13) -> 2 | G14: 9 | H14: 13 | I14: 89 | J14: =PRODUCT(I14/K14) -> 45.4 % | K14: =SUM(K11:K13) -> 195.9985007 | L14: =PRODUCT((F14+G14)/E14) -> 0.31 | M14: =PRODUCT(H14/E14) -> 0.36 | N14: =PRODUCT((F14+G14+H14)/E14) -> 0.67 | O14: =PRODUCT(I14/E14) -> 2.47
